Cogmind - Beta 16 @@@ ROGUE MODE // 2025.12.29 @ 21:13:55 Player: Compilatron Result: Destroyed by Y-54 Guardian with Gatling Laser Performance ------------- Evolutions (3) 1500 Regions Visited (7) 1400 Robots Destroyed (68) 340 Value Destroyed (2109) 2109 Prototype IDs (27) 540 Alien Tech Used (0) 0 Bonus (1061) 1061 TOTAL SCORE: 6950 Bonus ------- High Alert Combat Kills 26 Follower Combat Kills 750 Aligned with FarCom 300 Friendly Fire -15 Cogmind --------- Core Integrity 0/700 Matter 372/500 Energy 50/100 System Corruption 2% Temperature Cool (6) Movement Rolling (110) Ox2 Location -7/Storage Parts ------- > --- POWER (1) -------- (None) > --- PROPULSION (4) --- Wheel > --- UTILITY (6) ------ Improved Cooling System Large Storage Unit High-capacity Matter Pod Improved Signal Interpreter Terrain Scan Processor > --- WEAPON (2) ------- Particle Gun > --- INVENTORY (15) --- System Shield Improved Datajack Peak State ------------ > --- POWER ------------ Heavy Deuterium Engine > --- PROPULSION ------- Carbon-fiber Leg Carbon-fiber Leg Carbon-fiber Leg > --- UTILITY ---------- Improved Heat Sink Large Storage Unit High-capacity Matter Pod Improved Signal Interpreter Terrain Scan Processor Improved Field Recycling Unit > --- WEAPON ----------- Heavy Assault Rifle High-powered Shotgun > --- INVENTORY -------- Light Nuclear Core Improved Deuterium Engine Improved Deuterium Engine Improved Deuterium Engine Wheel Arc Projector Pulse Rifle Pulse Rifle High-powered Shotgun Gauss Rifle Grenade Launcher Improved Datajack Deploy-a-Sentry Deploy-a-Sentry Deploy-a-Sentry [Rating: 38] Favorites ----------- Power Light Nuclear Core Engine Improved Deuterium Engine Power Core Light Nuclear Core Propulsion Carbon-fiber Leg Treads Light Treads Leg Carbon-fiber Leg Wheel Wheel Hover Unit Backup Propulsion I Flight Unit Improved VTOL Module Utility Large Storage Unit Device Improved Field Recycling Unit Storage Large Storage Unit Processor Improved Signal Interpreter Protection Hardened Medium Armor Plating Weapon Assault Rifle Energy Gun Particle Gun Energy Cannon Beam Cannon Ballistic Gun Assault Rifle Launcher Grenade Launcher Special Melee Weapon Improved Datajack Build | -11 -10 -10 -10 -9 -8 -7 -7 ------- Run | Yrd Mat Min Exi Min Mat Fac Sto Slots Evolved 6 | . . . . . 4 2 . Power . | . . . . . . . . Propulsion 2 | . . . . . 2 . . Utility 4 | . . . . . 2 2 . Weapon . | . . . . . . . . Parts Attached 60 | . 10 1 . . 25 16 8 Power 6 | . 1 . . . 2 2 1 Engine 4 | . . . . . 1 2 1 Core 2 | . 1 . . . 1 . . Reactor . | . . . . . . . . Propulsion 21 | . 4 . . . 9 4 4 Treads 6 | . 2 . . . 2 . 2 Leg 12 | . 1 . . . 6 3 2 Wheel 2 | . 1 . . . . 1 . Hover . | . . . . . . . . Flight 1 | . . . . . 1 . . Utility 17 | . 3 . . . 8 5 1 Device 11 | . 2 . . . 4 4 1 Storage 2 | . 1 . . . . 1 . Processor 3 | . . . . . 3 . . Hackware . | . . . . . . . . Protection 1 | . . . . . 1 . . Artifact . | . . . . . . . . Weapon 16 | . 2 1 . . 6 5 2 Energy Gun 6 | . . 1 . . 1 3 1 Energy Cannon 2 | . 1 . . . 1 . . Ballistic Gun 5 | . 1 . . . 2 1 1 Ballistic Cannon . | . . . . . . . . Launcher 1 | . . . . . . 1 . Special Weapon . | . . . . . . . . Impact Weapon . | . . . . . . . . Slashing Weapon . | . . . . . . . . Piercing Weapon . | . . . . . . . . Special Melee Weapon 2 | . . . . . 2 . . Unidentified Prototypes 2 | . . . . . 1 1 . Parts Lost 33 | . . . . . 7 15 11 Power 4 | . . . . . . 2 2 Propulsion 13 | . . . . . 2 7 4 Utility 7 | . . . . . 3 2 2 Weapon 9 | . . . . . 2 4 3 Highest Loss Streak 6 | . . . . . 2 4 6 To Critical Strikes . | . . . . . . . . Average Backups 10 | . 9 15 13 11 11 9 5 Power 1 | . 1 1 1 1 2 2 . Propulsion 1 | . 3 4 4 4 1 . . Utility 1 | . 1 3 3 3 2 . 1 Weapon 4 | . 3 6 4 2 4 4 1 Tool/Special . | . . . . . . . . Unused Backups 17 | . 4 . 3 1 4 4 1 Power 3 | . 1 . . . 1 1 . Propulsion 3 | . 2 . . . 1 . . Utility 2 | . 1 . . . . . 1 Weapon 8 | . . . 3 1 1 3 . Tool/Special 1 | . . . . . 1 . . Average Slot Usage (%) 92 | . 94 100 100 100 91 89 85 Engine 4 | . 3 . . . 4 5 6 Core 5 | . 9 14 14 14 4 1 . Treads 6 | . 7 14 14 14 8 . 6 Leg 13 | . 12 . . . 20 18 8 Wheel 6 | . 7 14 14 14 3 3 2 Device 11 | . 10 14 14 14 7 14 12 Storage 13 | . 14 14 14 14 9 15 15 Processor 9 | . . . . . 11 15 15 Energy Gun 5 | . 3 12 14 14 3 3 3 Energy Cannon 2 | . 10 1 . . 3 . . Ballistic Gun 9 | . 13 14 14 14 4 10 4 Special Melee Weapon 1 | . . . . . 6 . 3 Peak Build Rating 38 | . 10 11 13 13 34 38 38 Average Rating 24 | . 8 10 12 13 27 33 28 On Entrance 14 | 6 6 10 11 13 13 30 23 Avg Prop Armor Cover (%) 11 | . 11 12 12 12 19 4 14 Naked Turns . | . . . . . . . . Heaviest Build 56 | 11 31 31 31 31 46 56 52 Greatest Support 62 | 20 20 10 10 10 62 45 27 Greatest Overweight (x) 5 | . 3 3 3 3 4 5 5 Average Overweight (x) 1 | . 1 3 3 3 . 1 2 Largest Inventory Capacity 15 | . 15 15 15 15 15 15 15 Average Capacity 14 | . 11 15 15 15 15 15 15 Most Carried 15 | . 15 15 15 15 15 15 9 Average Carried 11 | . 9 15 14 14 14 11 5 Final Capacity 15 | 8 15 15 15 15 15 15 15 Final Carried 15 | 6 15 15 15 15 14 6 2 Class Distribution -------------------- 75% | Mutant 18% | Assassin 4% | Skirmisher Dominant Class ---------------- Mutant | -10/Materials Mutant | -10/Mines Mutant | -10/Exiles Mutant | -9/Mines Assassin | -8/Materials Mutant | -7/Factory Assassin | -7/Storage Resources | -11 -10 -10 -10 -9 -8 -7 -7 ----------- Run | Yrd Mat Min Exi Min Mat Fac Sto Matter Collected 1680 | 200 226 191 . 67 447 446 103 Remotely . | . . . . . . . . Salvage Created 2649 | . 274 88 . . 1053 922 312 Parts 141 | . 17 6 . . 50 52 16 Haulers Intercepted 3 | . 1 . . . . 2 . Recyclers Shooed 2 | . . . . . . 2 . Parts Field Recycled 5 | . . . . . . 5 . Retrieved Matter 32 | . . . . . . 32 . Parts Self-Destructed . | . . . . . . . . Prevented . | . . . . . . . . Parts Restored . | . . . . . . . . Kills | -11 -10 -10 -10 -9 -8 -7 -7 ------- Run | Yrd Mat Min Exi Min Mat Fac Sto Combat Hostiles Destroyed 44 | . 7 3 . . 19 9 6 Guns 28 | . 5 1 . . 8 8 6 Cannons 11 | . 2 2 . . 7 . . AOE 4 | . . . . . 3 1 . Classes Destroyed 13 | . 4 . . . 4 5 . Worker 4 | . . . . . . 3 1 Builder 8 | . . . . . . 8 . Hauler 3 | . 1 . . . . 2 . Recycler 5 | . . . . . 1 4 . Mechanic 1 | . . . . . . 1 . Operator 1 | . . . . . . 1 . Turret 1 | . . . . . . 1 . Watcher 2 | . 1 . . . 1 . . Swarmer 4 | . 3 1 . . . . . Grunt 27 | . 4 2 . . 11 5 5 Duelist 1 | . . . . . 1 . . Sentry 9 | . . . . . 6 2 1 Hunter 3 | . . . . . 1 2 . Best Kill Streak 7 | . 3 2 . . 7 4 5 Combat Bots Only 7 | . 3 2 . . 7 3 4 Max Kills in Single Turn 2 | . 1 1 . . 2 2 1 Gunslinging . | . . . . . . . . Exploded 2 | . . . . . 2 1 . Melee . | . . . . . . . . Uniques/NPCs Destroyed . | . . . . . . . . Combat | -11 -10 -10 -10 -9 -8 -7 -7 -------- Run | Yrd Mat Min Exi Min Mat Fac Sto Hostile Shots Fired 615 | . 41 18 . . 99 221 236 Missed 207 | . 10 5 . . 31 73 88 Hits 408 | . 31 13 . . 68 148 148 Melee 2 | . . . . . 2 . . Projectile 406 | . 31 13 . . 66 148 148 Critical Strikes 12 | . 1 1 . . 3 5 2 Damage Taken 5000 | . 330 132 . . 1188 1862 1488 Core 929 | . 52 24 . . 146 360 347 Absorbed by Shields . | . . . . . . . . Regen/Repaired (Parts) 226 | . 103 . . . 88 . 35 Core Remaining (%) 80 | 100 . . . 69 73 . . Volleys Fired 240 | . 38 8 . . 76 80 38 Largest 2 | . 2 2 . . 2 2 2 Hottest 110 | . 80 85 . . 85 110 93 Shots Fired 361 | . 60 16 . 2 90 145 48 Gun 299 | . 38 14 . 2 56 141 48 Cannon 58 | . 22 2 . . 34 . . Launcher 4 | . . . . . . 4 . Special . | . . . . . . . . Kinetic 180 | . 38 8 . 1 37 65 31 Thermal 91 | . 22 8 . 1 11 35 14 Explosive 4 | . . . . . . 4 . Electromagnetic 86 | . . . . . 42 41 3 Robot Hit Streak 14 | . 13 2 . 2 9 14 9 Robot Miss Streak 5 | . 2 5 . . 3 4 3 Penetration Max . | . . . . . . . . Secondary Targets 2 | . . 1 . . 1 . . Max Gunslinging Chain 1 | . . 1 . . 1 . . Shots Hit Robots 263 | . 43 5 . 2 77 100 36 Core Hits 131 | . 14 5 . . 41 55 16 Critical Kills . | . . . . . . . . Critical Parts Destroyed 5 | . . . . . 2 1 2 Critical Strikes 6 | . . 1 . . 2 1 2 Burn 1 | . . 1 . . . . . Destroy 5 | . . . . . 2 1 2 Melee Attacks 8 | . . . . . 7 . 1 Impact . | . . . . . . . . Slashing . | . . . . . . . . Piercing . | . . . . . . . . Sneak Attacks 7 | . . . . . 6 . 1 Combat Hostiles . | . . . . . . . . Follow-up Attacks . | . . . . . . . . Damage Inflicted 4919 | . 606 101 . 27 1457 1999 729 Guns 3397 | . 380 65 . 27 673 1624 628 Cannons 910 | . 226 36 . . 648 . . Explosions 604 | . . . . . 136 372 96 Melee . | . . . . . . . . Ramming 8 | . . . . . . 3 5 Kinetic 2237 | . 380 52 . 12 475 891 427 Thermal 1280 | . 226 49 . 15 242 579 169 Explosive 298 | . . . . . . 202 96 Electromagnetic 1096 | . . . . . 740 324 32 Impact . | . . . . . . . . Slashing . | . . . . . . . . Piercing . | . . . . . . . . Highest Corruption 4 | . 4 4 4 4 . 1 2 Average Corruption 3 | . 3 4 4 4 . 1 1 Corruption Purged . | . . . . . . . . Corruption Blocked . | . . . . . . . . Effects 34 | . 3 2 15 9 . . 5 Message Errors 9 | . 1 . 5 2 . . 1 Matter Fused 11 | . . . 5 4 . . 2 Heat Flow Errors 5 | . 1 1 3 . . . . Energy Discharges 2 | . . . . . . . 2 Data Loss (minor) 4 | . 1 1 2 . . . . Misfires 2 | . . . . 2 . . . Alerts 1 | . . . . 1 . . . Overload Shots . | . . . . . . . . Overflow Damage 42 | . . . . . . 32 10 Projectiles . | . . . . . . . . Explosions 42 | . . . . . . 32 10 Melee . | . . . . . . . . Knockbacks . | . . . . . . . . Impact . | . . . . . . . . Kinetic . | . . . . . . . . Secondary . | . . . . . . . . Self-Inflicted Damage 234 | . . . . . 92 82 60 Shots 5 | . . . . . 2 2 1 Rammed 1 | . . . . . . 1 . Targets Rammed 3 | . . . . . . 2 1 Kicked 2 | . . . . . . 1 1 Crushed . | . . . . . . . . Highest Temperature 294 | . 267 147 218 28 294 12 31 Average Temperature 90 | . 105 64 95 17 103 8 11 Received Heat Transfer 1824 | . 168 27 . . 495 519 615 Effects 1 | . . . . . 1 . . Energy Bleed 1 | . . . . . 1 . . Siege Activations . | . . . . . . . . Martial Activations . | . . . . . . . . Shielding Activations . | . . . . . . . . Robots Disrupted 1 | . . . . . . 1 . Combat Hostiles 1 | . . . . . . 1 . Robots Corrupted 1 | . . . . . 1 . . Combat Hostiles 1 | . . . . . 1 . . Parts Fried 9 | . . . . . 6 3 . Impact Corruptions . | . . . . . . . . Robots Melted . | . . . . . . . . Combat Hostiles . | . . . . . . . . Parts Melted 4 | . 1 . . . 1 1 1 Heat Transferred 2457 | . 481 185 . 37 409 938 407 Parts Sabotaged . | . . . . . . . . Parts Stolen . | . . . . . . . . Parts Stripped . | . . . . . . . . Power Chain Reactions 4 | . . . . . 2 2 . Alert | -11 -10 -10 -10 -9 -8 -7 -7 ------- Run | Yrd Mat Min Exi Min Mat Fac Sto Maximum Alert Level 2 | . . . . . 1 2 1 Low Security (%) 77 | . 100 100 . 100 95 59 31 Level 1 13 | . . . . . 4 17 68 Level 2 9 | . . . . . . 22 . Level 3 . | . . . . . . . . Level 4 . | . . . . . . . . Level 5 . | . . . . . . . . High Security . | . . . . . . . . Max Security . | . . . . . . . . Peak Influence 568 | . 70 74 . . 219 568 256 Initial 245 | . . . . . . 93 245 Average 123 | . 17 29 . . 83 201 209 Influence Increases 2423 | . 213 124 . . 706 1106 274 Destroy 0b10 Robot/C 1360 | . 140 100 . . 420 580 120 Destroy 0b10 Robot/NC 140 | . 10 . . . 20 105 5 Destroy Leader 374 | . 24 20 . . 114 186 30 Allied During Kill 93 | . . 4 . . 5 84 . Trap Triggered on 0b10 50 | . . . . . 30 . 20 Successful Hack 103 | . 39 . . . 34 4 26 Select Force Hacks 60 | . . . . . . 60 . Disable Machine 60 | . . . . . . 15 45 Destroy Structure 63 | . . . . . 8 42 13 Partial Spotted 30 | . . . . . 30 . . Lose Combat Pursuer 90 | . . . . . 45 30 15 Influence Decreases 2212 | . 213 80 44 . 499 772 604 Entered New Map 454 | . . . 44 . . 114 296 Time Decay 1383 | . 213 80 . . 409 483 198 Lost Part 315 | . . . . . 70 135 110 Lost Ally 60 | . . . . . 20 40 . Squads Dispatched 19 | . . . . . 3 12 4 Investigation 6 | . . . . . 2 3 1 Extermination 3 | . . . . . . 3 . Reinforcement 10 | . . . . . 1 6 3 Assault . | . . . . . . . . Garrison . | . . . . . . . . Intercept . | . . . . . . . . Searches Triggered . | . . . . . . . . Construction Impeded 2 | . . . . . . 1 1 Haulers Reinforced 3 | . . . . . . 2 1 Active Scanning Responses . | . . . . . . . . Cargo Convoy Interrupts 1 | . . . . . . 1 . Stealth | -11 -10 -10 -10 -9 -8 -7 -7 --------- Run | Yrd Mat Min Exi Min Mat Fac Sto Distress Signals 10 | . 1 . . . 3 5 1 Communications Jammed . | . . . . . . . . Distress Signals . | . . . . . . . . Times Spotted 94 | . 14 5 . . 31 35 9 Peak Tracking Total 6 | . 4 3 . . 5 5 6 Tactical Retreats 4 | . . . . . 2 1 1 Traps | -11 -10 -10 -10 -9 -8 -7 -7 ------- Run | Yrd Mat Min Exi Min Mat Fac Sto Traps Triggered 5 | . 3 . . . . 2 . Indirectly . | . . . . . . . . Trap Hack Attempts 86 | . . . . . 44 . 42 Triggered . | . . . . . . . . Disarmed . | . . . . . . . . Reprogrammed 12 | . . . . . 6 . 6 Reused 5 | . . . . . 3 . 2 Traps Extracted . | . . . . . . . . Installed . | . . . . . . . . Triggered 5 | . . . . . 3 . 2 Machines | -11 -10 -10 -10 -9 -8 -7 -7 ---------- Run | Yrd Mat Min Exi Min Mat Fac Sto Machines Disabled 4 | . . . . . . 1 3 Max in Single Turn 1 | . . . . . . 1 1 Machines Repaired . | . . . . . . . . Machines Dismantled . | . . . . . . . . Machines Sabotaged . | . . . . . . . . Overloaded Fab Kills . | . . . . . . . . Hacking | -11 -10 -10 -10 -9 -8 -7 -7 --------- Run | Yrd Mat Min Exi Min Mat Fac Sto Machines Accessed 29 | . 8 . 1 . 10 4 6 Terminals 21 | . 7 . . . 8 1 5 Fabricators . | . . . . . . . . Repair Stations 3 | . 1 . . . 1 . 1 Recycling Units 2 | . . . . . . 2 . Scanalyzers 2 | . . . . . 1 1 . Garrison Access . | . . . . . . . . Total Hacks 94 | . 23 . 1 . 44 11 15 Successful 54 | . 14 . 1 . 25 5 9 Failed 39 | . 9 . . . 18 6 6 Catastrophic 4 | . 1 . . . 1 1 1 Database Lockouts 1 | . . . . . 1 . . Manual 54 | . 15 . 1 . 26 5 7 Terminals 62 | . 19 . . . 30 1 12 Fabricators . | . . . . . . . . Repair Stations 14 | . 4 . . . 7 . 3 Recycling Units 5 | . . . . . . 5 . Scanalyzers 12 | . . . . . 7 5 . Garrison Access . | . . . . . . . . Terminal Hacks 11 | . 3 . 1 . 6 . 1 Robot Analysis 2 | . 2 . . . . . . Prototype ID Bank 1 | . . . . . 1 . . Emergency Access Points 1 | . . . . . 1 . . Terminal Index 1 | . . . . . 1 . . Recycling Unit Index 1 | . . . . . 1 . . Locate Traps 3 | . 1 . . . 1 . 1 Zone Layout 1 | . . . . . 1 . . Proto ID Catalog 1 | . . . 1 . . . . Fabricator Hacks . | . . . . . . . . Repair Station Hacks 10 | . 4 . . . 3 . 3 Scan Component 5 | . 2 . . . 2 . 1 Repair 4 | . 2 . . . 1 . 1 Refit 1 | . . . . . . . 1 Recycling Unit Hacks . | . . . . . . . . Scanalyzer 8 | . . . . . 5 3 . Insert Component 3 | . . . . . 2 1 . Analyze 3 | . . . . . 2 1 . Retrieve Study 2 | . . . . . 1 1 . Garrison Access Hacks . | . . . . . . . . Unauthorized Hacks 25 | . 7 . . . 11 2 5 Terminals 22 | . 7 . . . 10 . 5 Track 6 | . 2 . . . 3 . 1 Botnet 11 | . 3 . . . 6 . 2 Operators 5 | . 2 . . . 1 . 2 Fabricators . | . . . . . . . . Repair Stations 1 | . . . . . 1 . . Patch 1 | . . . . . 1 . . Recycling Units 2 | . . . . . . 2 . Tunnel 2 | . . . . . . 2 . Scanalyzers . | . . . . . . . . Garrison Access . | . . . . . . . . Data Cores Recovered . | . . . . . . . . Used . | . . . . . . . . Hacking Detections 22 | . 8 . . . 7 3 4 Full Trace Events 2 | . . . . . 1 . 1 Feedback Events 1 | . . . . . . . 1 Corruption 1 | . . . . . . . 1 Feedback Blocked . | . . . . . . . . Robot Schematics Acquired . | . . . . . . . . Robots Built . | . . . . . . . . Authchips . | . . . . . . . . Time . | . . . . . . . . Total Robot Build Rating . | . . . . . . . . Part Schematics Acquired 3 | . . . . . 2 1 . Parts Built . | . . . . . . . . Authchips . | . . . . . . . . Time . | . . . . . . . . Total Part Build Rating . | . . . . . . . . Part Studies Acquired 2 | . . . . . 1 1 . Parts Repaired 4 | . 2 . . . 1 . 1 Time 128 | . 64 . . . 38 . 26 Parts Recycled . | . . . . . . . . Recycled Matter . | . . . . . . . . Retrieved Matter . | . . . . . . . . Retrieved Components . | . . . . . . . . Parts Scanalyzed 3 | . . . . . 2 1 . Part Schematics Acquired 3 | . . . . . 2 1 . Parts Damaged . | . . . . . . . . Bothacking | -11 -10 -10 -10 -9 -8 -7 -7 ------------ Run | Yrd Mat Min Exi Min Mat Fac Sto Used RIF Installer . | . . . . . . . . Robots Hacked . | . . . . . . . . Non-combat . | . . . . . . . . Combat . | . . . . . . . . Robot Hacks Applied . | . . . . . . . . Relay Couplers Released . | . . . . . . . . Fabnet Peak Effective % . | . . . . . . . . Robots Rewired . | . . . . . . . . Allies Hacked . | . . . . . . . . Hacks Repelled . | . . . . . . . . Allies | -11 -10 -10 -10 -9 -8 -7 -7 -------- Run | Yrd Mat Min Exi Min Mat Fac Sto Total Allies 4 | . . 1 . 3 . . . Largest Group 3 | . . 1 1 3 3 . . Highest-Rated Group 40 | . . 31 31 40 40 . . Highest-Rated Ally 31 | . . 31 31 16 16 . . Total Orders . | . . . . . . . . Ally Attacks 111 | . . 6 . . 34 71 . Total Damage 3984 | . . 106 . . 390 3488 . Kills 28 | . . 2 . . 4 22 . Allies Corrupted . | . . . . . . . . Allies Melted . | . . . . . . . . Turrets Deployed 3 | . . . . . . 3 . Intel | -11 -10 -10 -10 -9 -8 -7 -7 ------- Run | Yrd Mat Min Exi Min Mat Fac Sto Active Infowar (turns) 3214 | . 372 235 631 278 1114 263 321 Sensors 6 | . . . . . 6 . . Terrain 1680 | . . . . . 1096 263 321 Seismic 1537 | . 372 235 631 278 21 . . Robot Analysis Total 2 | . 2 . . . . . . Derelict Logs Recovered 3 | . . 2 . 1 . . . Drone Launches . | . . . . . . . . Drone Recoveries . | . . . . . . . . Exploration | -11 -10 -10 -10 -9 -8 -7 -7 ------------- Run | Yrd Mat Min Exi Min Mat Fac Sto Turns Passed 5908 | . 850 235 631 278 1354 2151 409 Spaces Moved 3187 | 1 481 165 432 208 807 958 135 Core . | . . . . . . . . Treads 2 | . 2 . . . . . . Legs 1675 | 1 210 . . . 592 792 80 Wheels 1510 | . 269 165 432 208 215 166 55 Hover . | . . . . . . . . Flight . | . . . . . . . . Fastest Speed 105 | 120 120 125 125 125 105 105 155 Average Speed 137 | 120 123 125 125 125 114 171 168 Slowest Speed 340 | 120 240 125 125 125 190 340 177 Overloaded Moves . | . . . . . . . . Propulsion Burnouts . | . . . . . . . . Robots Hopped 2 | . . . . . . 2 . Potential Cave-ins . | . . . . . . . . Cave-ins Triggered . | . . . . . . . . Exploration Rate (%) 44 | 2 72 26 90 55 63 13 34 Regions Visited 7 Branch Regions 4 Pre-discovered Areas 5 | . . 2 . 1 . 2 . Known Exits Taken 2 | . . . . . 1 1 . Unknown Exits Taken 5 | 1 1 1 1 1 . . . Scrap Searched 2 | . . 1 . 1 . . . Spaces Dug . | . . . . . . . . Terrain Destroyed 50 | . . . . . 7 30 13 Melee . | . . . . . . . . Projectile . | . . . . . . . . AOE 50 | . . . . . 7 30 13 Terrain Rammed . | . . . . . . . . Walls Destroyed . | . . . . . . . . Machines Disabled . | . . . . . . . . Actions | -11 -10 -10 -10 -9 -8 -7 -7 --------- Run | Yrd Mat Min Exi Min Mat Fac Sto Total 4349 | . 676 177 524 226 1156 1324 266 Wait 661 | . 129 4 87 17 158 240 26 Move 3176 | . 480 164 431 207 806 953 135 Hop 2 | . . . . . . 2 . Pick Up 55 | . 12 . 3 1 17 16 6 Fast Attach 8 | . 2 . . . 5 1 . Attach 38 | . 2 . . . 13 15 8 Detach 3 | . . . . . 3 . . Swap 31 | . 8 1 . . 11 4 7 Drop 38 | . 5 . 3 1 16 11 2 Fire 240 | . 38 8 . . 76 80 38 Melee 8 | . . . . . 7 . 1 Ram 1 | . . . . . . 1 . Kick 2 | . . . . . . 1 1 Crush . | . . . . . . . . Escape Stasis . | . . . . . . . . Rewire . | . . . . . . . . Trap 86 | . . . . . 44 . 42 Miscellaneous . | . . . . . . . . Route ------- -11/Scrapyard -10/Materials (discovered 2 exits: [*Mat] / [*Min]) -10/Mines -10/Exiles -9/Mines -8/Materials -7/Factory -7/Storage History --------- Turn | Location | Event 1 | -11/Scrapyard | Discovered new exit (range 0) 1 | -11/Scrapyard | Entered Materials 312 | -10/Materials | Build established: Mutant 393 | -10/Materials | Discovered new exit (range 7) 681 | -10/Materials | Repaired Lgt. Nuclear Core 709 | -10/Materials | Repaired Assault Rifle 734 | -10/Materials | Discovered new exit (range 3) 851 | -10/Materials | Entered Mines 874 | -10/Mines | Learned Materials non-interactive machine intel 885 | -10/Mines | Escorted by a lone wolf Derelict 906 | -10/Mines | Learned location of Storage (-7) 916 | -10/Mines | Learned location of Recycling (-7) 1077 | -10/Mines | Deemed a non-threat by the Exiles lab entrance 1077 | -10/Mines | Discovered new exit (range 5) 1086 | -10/Mines | Entered Exiles 1086 | -10/Exiles | Accompanied by 1 ally 1162 | -10/Exiles | Met 8R-AWN 1207 | -10/Exiles | Met EX-HEX 1261 | -10/Exiles | Met EX-BIN 1275 | -10/Exiles | Aligned with FarCom system 1276 | -10/Exiles | Given EX-Vault access code 1307 | -10/Exiles | Opened EX-Vault 1316 | -10/Exiles | Found Deploy-a-Sentry 1318 | -10/Exiles | Found Deploy-a-Sentry 1321 | -10/Exiles | Found Deploy-a-Sentry 1347 | -10/Exiles | Warned to stay clear of 0b10 Research branches 1385 | -10/Exiles | Met EX-DEC 1471 | -10/Exiles | Visited The Gauntlet 1704 | -10/Exiles | Discovered new exit (range 11) 1717 | -10/Exiles | Left Exiles lab with Deploy-a-Sentry 1717 | -10/Exiles | Entered Mines 1752 | -9/Mines | Met a Derelict bent on vengeance 1821 | -9/Mines | Found a damaged Exp. Sensor Array with a note attached 1887 | -9/Mines | Learned Materials stockpile data 1976 | -9/Mines | Discovered new exit (range 5) 1991 | -9/Mines | Assisted by bots powering up and referring to "LRC-V3" 1995 | -9/Mines | Entered Materials 1995 | -8/Materials | Accompanied by 3 allies 1995 | -8/Materials | Evolved 4 slots: Propulsion x2, Utility x2 1997 | -8/Materials | Loaded intel: 33 non-interactive machine locations 2472 | -8/Materials | Central database locked down 2550 | -8/Materials | Build established: Assassin 2792 | -8/Materials | Destroyed 7 combat bots 3201 | -8/Materials | Repaired Lgt. Nuclear Core 3322 | -8/Materials | Discovered new exit (range 5) 3348 | -8/Materials | Identified exit to Factory 3349 | -8/Materials | Entered Factory 3349 | -7/Factory | Evolved 2 slots: Utility x2 3576 | -7/Factory | Build established: Mutant 3871 | -7/Factory | Lost 3 parts (2n1u) 3928 | -7/Factory | Discovered new exit (range 8) 4046 | -7/Factory | DAS Turret deployed 4182 | -7/Factory | Cargo convoy interrupted 4334 | -7/Factory | DAS Turret deployed 4444 | -7/Factory | Identified exit to Storage 4484 | -7/Factory | DAS Turret deployed 5120 | -7/Factory | Lost 4 parts (1p1n2w) 5500 | -7/Factory | Entered Storage 5501 | -7/Storage | Core integrity fell below 50% 5562 | -7/Storage | Repaired Wheel 5852 | -7/Storage | Lost 6 parts (1p1n2u2w) 5856 | -7/Storage | Core integrity fell below 20% 5909 | -7/Storage | Destroyed by Y-54 Guardian with Gatling Laser Last Messages --------------- 05832_ R-06 Scavenger collects Aluminum Leg. 05833_ The unstable cave ceiling collapses. 05833_ K-01 Serf collects debris. 05834_ Slug penetrates Wall. 05836_ R-06 Scavenger collects Wheel. 05836_ K-01 Serf collects debris. 05839_ U-05 Engineer builds a Wall. 05848_ Slug penetrates Wall. 05857_ Kicked R-06 Scavenger out of the way. 05875_ System corrupted: Matter fused (-8). 05881_ Carbon-fiber Leg+ destroyed. 05882_ G-47 Trooper destroyed. 05888_ Slug penetrates G-47 Trooper. 05891_ Critical hit (Burn: +37). 05893_ Imp. Deuterium Engine destroyed. 05893_ Gauss Rifle destroyed. 05896_ VSS Leg destroyed. 05898_ Imp. Heat Sink melted. 05898_ G-47 Trooper destroyed. 05902_ Arm. Treads destroyed. Map ----- +----------------------------------------------------+ | ??????????????????????? ?????? ?#??????? | | ???????????????????????? ? ??? ????????? | | ????????????????????????? ????? ? ???? ? | | ??????????????????????#?? ??????? ??? ? | | ????????????????????????????#??#? ? ??? | | ?????????????????#??#?????#??##?#?????## | | ???????????????????????? ? ??? ? ?? | | ????????????????###+##+##?##?##??#####?? | | ????????????????# #???#?#?### #?# | | ???#????????????#] !! ########### #?# | | ???? ??????????# # ^ # ### | | ???# ######### # # #?# | | ???# ?? ! [# # #?# | | ???# #?? # *=! + #?# | | ???# ######+# ! % " # ### | | ???# # ! # | | ?????????####### ##### # % # | | ??????????????## ##??# # ! %*# | | ????????????####Y##### # # % ###### #### | | ????????????# # ## #*#####?# ### | | ????????????# n # ## ? # ### | | ????????????# """""" # ## """ ""??# ### | | ????????????# " ?????# ## """ ""? # ### | | ????????????# " ?"?# ## """ """ # + | | ????????????# """""" + + """ # ### | | ????????????# Y@ # # """?# #?# | | ????????????#%== ; + # ### | | ????????????# # # ? # #### | | ????????????########## ###########+#### | | ?????????????????????? ##### ## | | ?????????????????????? ?#### """" ## | | ??????????????????? ?? ???### "=="" ## | | ??????????????????????? ???## "= "" #^ | | ??????????????????????#???#??# """* " +^ | | ???????????????????#?????#?### ""!=" #^ | | ??????????????????????????#?## """ #^ | | ????????????????????#??#?##### # | | ??????????????????????#?#???## #^ | | ????????????????????????#?############## | | ??????????????????????????###?##?###?### | | ???????????????????????###?##?########## | | ?????????????????????????????####?###### | | | | | | | | | | | | | | | | | +----------------------------------------------------+ Best States ------------- Heat Dissipation 61 Energy Generation 18 Energy Capacity 310 Matter Stores 500 Matter Capacity 500 Sight Range 16 Terrain Scan Range 16 Terrain Scan Density 85 Armor Coverage 225 Evasion (%) 55 Recoil Reduction 2 Item Schematics ----------------- Imp. Deuterium Engine | -8/Materials | Scanalyzed Imp. Datajack | -8/Materials | Scanalyzed Arc Projector | -7/Factory | Scanalyzed Robot Schematics ------------------ None Fabricated ------------ Nothing Repaired ---------- Lgt. Nuclear Core | 28% | -10/Materials Assault Rifle | 33% | -10/Materials Lgt. Nuclear Core | 34% | -8/Materials Wheel | 12% | -7/Storage Studied --------- Carbon-fiber Leg | -8/Materials | Hacked Arc Projector | -7/Factory | Hacked Alien Tech Used ----------------- None Achievements -------------- None Challenges ------------ None Game ------ Seed CargoStructuralNanoactuators Manual? 0 Play Time 00:55:45 Cumulative 82.2 hours Start 2025.12.29 @ 20:23:01 End 2025.12.29 @ 21:13:55 Sessions 1 Manual Loads 0 Difficulty Rogue Special Mode None Game No. 133 Rogue 109 Adventurer 20 Explorer 4 Win Type - Total 1 Types 0/0/0/1/0/0/0/0/0/0 Lore% 52 Gallery% 43 Achievement% 34 Wizard Run 0 Options --------- Layout 1 ASCII 0 Keyboard 0 Movement Numpad Keybinds 0 Fullscreen 2 Font 24/Smallcaps Map View 50x35 Zoom Use 0% Tactical HUD 1 Map Filters NONE Filters NONE Steam 1 RUN: fc9df281-709f-4129-9d6b-232ed326ed94